Cogmind - Beta 15 @@@ ROGUE MODE // 2025.09.16 @ 21:53:25 Player: c4-BRK Result: Destroyed by G-47 Trooper with Particle Gun Performance ------------- Evolutions (1) 500 Regions Visited (2) 400 Robots Destroyed (20) 100 Value Destroyed (497) 497 Prototype IDs (3) 60 Alien Tech Used (0) 0 Bonus (0) 0 TOTAL SCORE: 1557 Bonus ------- None Cogmind --------- Core Integrity 0/400 Matter 287/300 Energy 100/100 System Corruption 0% Temperature Cool (9) Movement Core (200) Ox3 Location -9/Materials Parts ------- > --- POWER (1) -------- (None) > --- PROPULSION (2) --- (None) > --- UTILITY (4) ------ Medium Storage Unit Visual Processing Unit Improved Targeting Computer > --- WEAPON (2) ------- (None) > --- INVENTORY (10) --- Ion Engine Heavy Ion Engine Aluminum Leg Peak State ------------ > --- POWER ------------ Cooled Ion Engine > --- PROPULSION ------- Wheel Compact Wheel > --- UTILITY ---------- Medium Storage Unit Visual Processing Unit Improved Targeting Computer > --- WEAPON ----------- Improved EM Shotgun Improved Light Cannon > --- INVENTORY -------- Ion Engine Heavy Ion Engine Heavy Ion Engine Aluminum Leg Small Laser [Rating: 15] Favorites ----------- Power Heavy Ion Engine Engine Heavy Ion Engine Propulsion Wheel Wheel Wheel Utility Improved Targeting Computer Device Cooling System Storage Medium Storage Unit Processor Improved Targeting Computer Weapon Small Laser Energy Gun Small Laser Ballistic Gun Light Assault Rifle Ballistic Cannon Improved Light Cannon Build | -11 -10 -9 ------- Run | Yrd Mat Mat Slots Evolved 2 | . . 2 Power . | . . . Propulsion . | . . . Utility 2 | . . 2 Weapon . | . . . Parts Attached 19 | 6 4 9 Power 5 | 1 1 3 Engine 5 | 1 1 3 Core . | . . . Reactor . | . . . Propulsion 3 | 2 . 1 Treads . | . . . Leg . | . . . Wheel 3 | 2 . 1 Hover . | . . . Flight . | . . . Utility 5 | 1 2 2 Device 1 | . . 1 Storage 2 | 1 1 . Processor 2 | . 1 1 Hackware . | . . . Protection . | . . . Artifact . | . . . Weapon 6 | 2 1 3 Energy Gun 4 | 2 1 1 Energy Cannon . | . . . Ballistic Gun 1 | . . 1 Ballistic Cannon 1 | . . 1 Launcher . | . . . Special Weapon . | . . . Impact Weapon . | . . . Slashing Weapon . | . . . Piercing Weapon . | . . . Special Melee Weapon . | . . . Unidentified Prototypes 3 | . 1 2 Parts Lost 11 | . 1 10 Power 2 | . . 2 Propulsion 3 | . . 3 Utility 1 | . . 1 Weapon 5 | . 1 4 Highest Loss Streak 5 | . 1 5 To Critical Strikes . | . . . Average Backups 3 | . 2 4 Power 2 | . 1 2 Propulsion . | . . 1 Utility . | . . . Weapon . | . . . Tool/Special . | . . . Unused Backups 1 | . . 1 Power . | . . . Propulsion 1 | . . 1 Utility . | . . . Weapon . | . . . Tool/Special . | . . . Average Slot Usage (%) 83 | . 97 78 Engine 11 | . 14 10 Wheel 21 | . 28 18 Storage 11 | . 14 11 Processor 15 | . 12 16 Energy Gun 18 | . 28 15 Ballistic Gun 1 | . . 1 Ballistic Cannon 2 | . . 2 Peak Build Rating 15 | 6 11 15 Average Rating 11 | 3 10 12 On Entrance 5 | . 6 11 Naked Turns . | . . . Heaviest Build 25 | 13 23 25 Greatest Support 26 | 26 26 26 Greatest Overweight (x) 3 | . . 3 Average Overweight (x) . | . . . Largest Inventory Capacity 10 | 8 10 10 Average Capacity 9 | 6 8 10 Most Carried 6 | 4 4 6 Average Carried 3 | . 2 4 Final Capacity 10 | 8 10 10 Final Carried 3 | . 3 3 Class Distribution -------------------- 100% | Mutant Dominant Class ---------------- Mutant | -10/Materials Mutant | -9/Materials Resources | -11 -10 -9 ----------- Run | Yrd Mat Mat Matter Collected 475 | 204 106 165 Remotely . | . . . Salvage Created 740 | . 151 589 Parts 37 | . 6 31 Haulers Intercepted 1 | . . 1 Recyclers Shooed 3 | . . 3 Parts Field Recycled . | . . . Retrieved Matter . | . . . Parts Self-Destructed . | . . . Prevented . | . . . Kills | -11 -10 -9 ------- Run | Yrd Mat Mat Combat Hostiles Destroyed 15 | . 3 12 Guns 12 | . 2 10 Cannons 2 | . . 2 Classes Destroyed 6 | . 2 4 Hauler 1 | . . 1 Recycler 2 | . . 2 Watcher 2 | . 1 1 Swarmer 4 | . . 4 Grunt 10 | . 3 7 Sentry 1 | . . 1 Best Kill Streak 4 | . 2 4 Combat Bots Only 4 | . 2 4 Max Kills in Single Turn 2 | . 2 1 Gunslinging . | . . . Exploded . | . . . Melee . | . . . Uniques/NPCs Destroyed . | . . . Combat | -11 -10 -9 -------- Run | Yrd Mat Mat Hostile Shots Fired 152 | . 15 137 Missed 47 | . 3 44 Hits 105 | . 12 93 Projectile 105 | . 12 93 Critical Strikes 4 | . . 4 Damage Taken 1240 | . 137 1103 Core 446 | . 34 412 Absorbed by Shields . | . . . Core Remaining (%) 93 | 100 86 . Volleys Fired 112 | . 19 93 Largest 2 | . 2 2 Hottest 105 | . 105 105 Shots Fired 166 | . 34 132 Gun 141 | . 34 107 Cannon 25 | . . 25 Launcher . | . . . Special . | . . . Kinetic 53 | . . 53 Thermal 71 | . 19 52 Explosive . | . . . Electromagnetic 42 | . 15 27 Robot Hit Streak 16 | . 6 16 Robot Miss Streak 5 | . 2 5 Penetration Max . | . . . Secondary Targets . | . . . Shots Hit Robots 107 | . 22 85 Core Hits 37 | . 6 31 Critical Kills . | . . . Critical Parts Destroyed . | . . . Critical Strikes 3 | . 1 2 Burn 2 | . 1 1 Blast 1 | . . 1 Melee Attacks . | . . . Impact . | . . . Slashing . | . . . Piercing . | . . . Sneak Attacks . | . . . Combat Hostiles . | . . . Follow-up Attacks . | . . . Damage Inflicted 1589 | . 325 1264 Guns 1202 | . 325 877 Cannons 342 | . . 342 Explosions 45 | . . 45 Melee . | . . . Ramming . | . . . Kinetic 468 | . . 468 Thermal 718 | . 192 526 Explosive . | . . . Electromagnetic 403 | . 133 270 Impact . | . . . Slashing . | . . . Piercing . | . . . Highest Corruption 3 | . 3 . Average Corruption 2 | . 2 . Corruption Purged . | . . . Corruption Blocked . | . . . Effects 1 | . 1 . Data Loss (major) 1 | . 1 . Overload Shots . | . . . Overflow Damage 5 | . . 5 Projectiles 3 | . . 3 Explosions 2 | . . 2 Melee . | . . . Knockbacks 5 | . . 5 Impact . | . . . Kinetic 5 | . . 5 Secondary . | . . . Self-Inflicted Damage . | . . . Shots . | . . . Rammed . | . . . Targets Rammed . | . . . Kicked . | . . . Crushed . | . . . Highest Temperature 321 | . 321 242 Average Temperature 69 | . 96 56 Received Heat Transfer 666 | . 75 591 Effects 1 | . 1 . Shutdowns 1 | . 1 . Siege Activations . | . . . Martial Activations . | . . . Shielding Activations . | . . . Robots Disrupted . | . . . Combat Hostiles . | . . . Robots Corrupted . | . . . Combat Hostiles . | . . . Parts Fried . | . . . Impact Corruptions . | . . . Robots Melted 1 | . 1 . Combat Hostiles 1 | . 1 . Parts Melted 2 | . 1 1 Heat Transferred 1762 | . 520 1242 Parts Sabotaged . | . . . Parts Stolen . | . . . Parts Stripped . | . . . Power Chain Reactions 1 | . . 1 Alert | -11 -10 -9 ------- Run | Yrd Mat Mat Maximum Alert Level . | . . . Low Security (%) 100 | 100 100 100 Level 1 . | . . . Level 2 . | . . . Level 3 . | . . . Level 4 . | . . . Level 5 . | . . . High Security . | . . . Max Security . | . . . Peak Influence 152 | . 60 152 Initial 15 | . . 15 Average 39 | . 25 46 Influence Increases 462 | . 119 343 Destroy 0b10 Robot/C 300 | . 60 240 Destroy 0b10 Robot/NC 25 | . 5 20 Destroy Leader 66 | . 22 44 Successful Hack 2 | . 2 . Destroy Structure 9 | . . 9 Lose Combat Pursuer 60 | . 30 30 Influence Decreases 362 | . 82 280 Entered New Map 22 | . . 22 Time Decay 233 | . 72 161 Lost Part 107 | . 10 97 Squads Dispatched 2 | . 1 1 Investigation 1 | . . 1 Extermination . | . . . Reinforcement 1 | . 1 . Assault . | . . . Garrison . | . . . Intercept . | . . . Searches Triggered . | . . . Construction Impeded . | . . . Haulers Reinforced . | . . . Active Scanning Responses . | . . . Cargo Convoy Interrupts . | . . . Stealth | -11 -10 -9 --------- Run | Yrd Mat Mat Distress Signals 1 | . . 1 Communications Jammed . | . . . Distress Signals . | . . . Times Spotted 30 | . 9 21 Peak Tracking Total 6 | . 3 6 Tactical Retreats 3 | . 2 1 Traps | -11 -10 -9 ------- Run | Yrd Mat Mat Traps Triggered 3 | . 2 1 Indirectly . | . . . Trap Hack Attempts . | . . . Triggered . | . . . Disarmed . | . . . Reprogrammed . | . . . Reused . | . . . Traps Extracted . | . . . Installed . | . . . Triggered . | . . . Machines | -11 -10 -9 ---------- Run | Yrd Mat Mat Machines Disabled . | . . . Max in Single Turn . | . . . Machines Repaired . | . . . Machines Dismantled . | . . . Machines Sabotaged . | . . . Overloaded Fab Kills . | . . . Hacking | -11 -10 -9 --------- Run | Yrd Mat Mat Machines Accessed 1 | . 1 . Terminals 1 | . 1 . Fabricators . | . . . Repair Stations . | . . . Recycling Units . | . . . Scanalyzers . | . . . Garrison Access . | . . . Total Hacks 3 | . 3 . Successful 1 | . 1 . Failed 2 | . 2 . Catastrophic . | . . . Database Lockouts . | . . . Manual . | . . . Terminals 3 | . 3 . Fabricators . | . . . Repair Stations . | . . . Recycling Units . | . . . Scanalyzers . | . . . Garrison Access . | . . . Terminal Hacks 1 | . 1 . Record 1 | . 1 . Fabricator Hacks . | . . . Repair Station Hacks . | . . . Recycling Unit Hacks . | . . . Scanalyzer . | . . . Garrison Access Hacks . | . . . Unauthorized Hacks . | . . . Terminals . | . . . Fabricators . | . . . Repair Stations . | . . . Recycling Units . | . . . Scanalyzers . | . . . Garrison Access . | . . . Data Cores Recovered . | . . . Used . | . . . Hacking Detections 1 | . 1 . Full Trace Events . | . . . Feedback Events . | . . . Feedback Blocked . | . . . Robot Schematics Acquired . | . . . Robots Built . | . . . Authchips . | . . . Time . | . . . Total Robot Build Rating . | . . . Part Schematics Acquired . | . . . Parts Built . | . . . Authchips . | . . . Time . | . . . Total Part Build Rating . | . . . Parts Repaired . | . . . Time . | . . . Parts Recycled . | . . . Recycled Matter . | . . . Retrieved Matter . | . . . Retrieved Components . | . . . Parts Scanalyzed . | . . . Part Schematics Acquired . | . . . Parts Damaged . | . . . Bothacking | -11 -10 -9 ------------ Run | Yrd Mat Mat Used RIF Installer . | . . . Robots Hacked . | . . . Non-combat . | . . . Combat . | . . . Robot Hacks Applied . | . . . Relay Couplers Released . | . . . Fabnet Peak Effective % . | . . . Robots Rewired . | . . . Allies Hacked . | . . . Hacks Repelled . | . . . Allies | -11 -10 -9 -------- Run | Yrd Mat Mat Total Allies . | . . . Largest Group . | . . . Highest-Rated Group . | . . . Highest-Rated Ally . | . . . Total Orders . | . . . Ally Attacks . | . . . Total Damage . | . . . Kills . | . . . Allies Corrupted . | . . . Allies Melted . | . . . Intel | -11 -10 -9 ------- Run | Yrd Mat Mat Active Infowar (turns) 340 | . . 340 Optics 340 | . . 340 Robot Analysis Total . | . . . Derelict Logs Recovered . | . . . Drone Launches . | . . . Drone Recoveries . | . . . Exploration | -11 -10 -9 ------------- Run | Yrd Mat Mat Turns Passed 891 | 47 201 643 Spaces Moved 446 | 41 150 255 Core 10 | 5 . 5 Treads . | . . . Legs . | . . . Wheels 436 | 36 150 250 Hover . | . . . Flight . | . . . Fastest Speed 50 | 50 90 90 Average Speed 91 | 85 90 93 Slowest Speed 200 | 90 90 200 Overloaded Moves . | . . . Propulsion Burnouts . | . . . Robots Hopped . | . . . Potential Cave-ins . | . . . Cave-ins Triggered . | . . . Exploration Rate (%) 22 | 4 33 31 Regions Visited 2 Branch Regions . Pre-discovered Areas . | . . . Known Exits Taken . | . . . Unknown Exits Taken 2 | 1 1 . Scrap Searched . | . . . Spaces Dug . | . . . Terrain Destroyed 8 | . . 8 Melee . | . . . Projectile 2 | . . 2 AOE 6 | . . 6 Terrain Rammed . | . . . Walls Destroyed . | . . . Machines Disabled . | . . . Actions | -11 -10 -9 --------- Run | Yrd Mat Mat Total 764 | 52 180 532 Wait 164 | . . 164 Move 444 | 40 149 255 Hop . | . . . Pick Up 20 | 6 6 8 Fast Attach . | . . . Attach 16 | 6 2 8 Detach . | . . . Swap 5 | . 3 2 Drop 3 | . 1 2 Fire 112 | . 19 93 Melee . | . . . Ram . | . . . Kick . | . . . Crush . | . . . Escape Stasis . | . . . Rewire . | . . . Trap . | . . . Miscellaneous . | . . . Route ------- -11/Scrapyard -10/Materials (discovered 2 exits: [*Mat x2]) -9/Materials (discovered 1 exit: [*Mat]) History --------- Turn | Location | Event 13 | -11/Scrapyard | Discovered new exit (range 16) 48 | -11/Scrapyard | Entered Materials 83 | -10/Materials | Discovered new exit (range 14) 212 | -10/Materials | Discovered new exit (range 6) 249 | -10/Materials | Entered another Materials area 249 | -9/Materials | Evolved 2 slots: Utility x2 305 | -9/Materials | Build established: Mutant 586 | -9/Materials | Discovered new exit (range 18) 844 | -9/Materials | Core integrity fell below 50% 872 | -9/Materials | Lost 5 parts (1p2n2w) 880 | -9/Materials | Core integrity fell below 20% 892 | -9/Materials | Destroyed by G-47 Trooper with Particle Gun Last Messages --------------- Imp. EM Shotgun destroyed. G-34 Mercenary destroyed. Cld. Ion Engine destroyed. Lgt. Assault Rifle destroyed. Critical hit (Burn: +37). Com. Wheel destroyed. G-34 Mercenary destroyed. K-01 Serf cleans the Nuclear Reactor. G-47 Trooper destroyed. Critical hit (Burn: +37). K-01 Serf collects debris. G-34 Mercenary destroyed. K-01 Serf collects debris. Hvy. Ion Engine destroyed. Sml. Laser destroyed. Critical hit (Burn: +37). K-01 Serf collects debris. R-06 Scavenger collects Sml. Laser. K-01 Serf collects debris. R-06 Scavenger collects Aluminum Leg. Map ----- +----------------------------------------------------+ | ?????????????# """ # ###############?# ???? | | ?????????????# """ # #???????????????# ???? | | ?????????????# # #???????????????# ???? | | ?????????????########## #???????????????# ??? | | ??????????????????????# #???????????????# ??? | | ??????????????????????# #??????????????? ??# | | ??????????????????????# #??????????????? ??# | | ??????????????????????# #??????????????? "" ??+ | | ??????????????????????# #??????????????? T" ???# | | ??????????????????????# #??????????????? ?? ???# | | ??????????????????????# #??????????????????????# | | ??????????????????????# #??????????????????????# | | ??????????????????????# #??????????????????????? | | ??????????????????????# #??????????????????????? | | ??????????????????????# #??????????????????????? | | ??????????????????????# #??????????????????????? | | ??????????????????????# #??????????????????????? | | ??????????????????????# #????????#?????????????? | | ??????????????????????# ######## #?????????????? | | ??????????????????????# ! #?????????????? | | ??????????????????????# #?????????????? | | ??????????????????????# *** #?????????????? | | ??????????????????????# *** #?????????????? | | ??????????????????????# k** #?????????????? | | ??????????????????????# *[ #?????????????? | | ??????????????????????#*%@ #?????????????? | | ??????????????????????#g!gr #?????????????? | | ??????????????????????#[%"""% """ #?????????????? | | ??????????????????????#%="""= """ #?????????????? | | ??????????????????????#= """ """ +?????????????? | | ??????????????????????# #?????????????? | | ??????????????????????# #?????????????? | | ??????????????????????# """ """ #?????????????? | | ?????????????????????? """ r""" #?????????????? | | ?????????????????????? "??w """ #?????????????? | | ????????????????????? ???? ?? #?????????????? | | ????????????????????? ????? ??????????????????? | | ????????????????????? ????????????????????????? | | ????????????????????" ????????????????????????? | | ????????????????????" ?????????????????????????? | | ????????????????????" ??????????????????????????? | | ????????????????????? ???????????????????????????? | | ?????????????????????????????????????????????????? | | ?????????????????????????????????????????????????? | | ?????????????????????????????????????????????????? | | ?????????????????????????????????????????????????? | | ?????????????????????????????????????????????????? | | ?????????????????????????????????????????????????? | | ?????????????????????????????????????????????????? | | ?????????????????????????????????????????????????? | +----------------------------------------------------+ Best States ------------- Heat Dissipation 50 Energy Generation 14 Energy Capacity 280 Matter Stores 300 Matter Capacity 300 Sight Range 18 Terrain Scan Density 10 Evasion (%) 42 Targeting Accuracy 6 Item Schematics ----------------- None Robot Schematics ------------------ None Fabricated ------------ Nothing Repaired ---------- Nothing Alien Tech Used ----------------- None Achievements -------------- None Challenges ------------ None Game ------ Seed SkeletonIntegrityFocus Manual? 0 Play Time 00:10:16 Cumulative 21.5 hours Start 2025.09.16 @ 21:43:49 End 2025.09.16 @ 21:53:25 Sessions 1 Manual Loads 0 Difficulty Rogue Special Mode None Game No. 27 Rogue 6 Adventurer 21 Explorer 0 Win Type - Total 1 Types 0/0/0/0/0/0/0/1/0/0 Lore% 45 Gallery% 31 Achievement% 37 Wizard Run 0 Options --------- Layout 1 ASCII 0 Keyboard 0 Movement Mouse Keybinds 0 Fullscreen 2 Font 24/Smallcaps Map View 50x35 Zoom Use 0% Tactical HUD 0 Map Filters NONE Filters NONE Steam 1 RUN: 125b77b5-23a0-42f5-a99a-0da8e3fecd2c